fUSD/lending_fUSD_20240428
["ID","MTS","AMOUNT","RATE_DAILY","PERIOD"]
[323780136,1714288247397,-500.0,0.00016712,2]
[323780137,1714288247408,-1406.37,0.00016712,2]
[323780138,1714288247418,-308.80142628,0.00016712,2]
[323780139,1714288247427,-174.11,0.00016712,2]
[323780140,1714288247437,-525.8,0.00016712,2]
[323780141,1714288247446,-501.65018964,0.00016712,2]
[323780142,1714288247456,-568.75,0.00016712,2]
[323780143,1714288247465,-500.0,0.00016712,2]
[323780144,1714288247475,-558.33,0.00016712,2]
[323780145,1714288247485,-500.0,0.00016712,2]
[323780146,1714288247495,-500.0,0.00016712,2]
[323780147,1714288247505,-683.39,0.00016712,2]
[323780148,1714288247514,-1055.23,0.00016712,2]
[323780149,1714288247524,-500.0,0.00016712,2]
[323780150,1714288247533,-626.62,0.00016712,2]
[323780151,1714288247542,-500.0,0.00016712,2]
[323780152,1714288247554,-1552.14,0.00016712,2]
[323780153,1714288247564,-500.0,0.00016712,2]
[323780154,1714288247573,-1041.3,0.00016712,2]
[323780155,1714288247583,-1086.51,0.00016712,2]
[323780156,1714288247594,-500.0,0.00016712,2]
[323780157,1714288247605,-500.0,0.00016712,2]
[323780158,1714288247615,-500.0,0.00016712,2]
[323780159,1714288247625,-504.43294634,0.00016712,2]
[323780160,1714288247634,-500.0,0.00016712,2]
[323780161,1714288247643,-527.0,0.00016712,2]
[323780162,1714288247652,-656.31,0.00016712,2]
[323780163,1714288247661,-500.0,0.00016712,2]
[323780164,1714288247670,-500.0,0.00016712,2]
[323780165,1714288247679,-724.1,0.00016712,2]
[323780166,1714288247688,-506.7476299,0.00016712,2]
[323780167,1714288247697,-500.0,0.00016712,2]
[323780168,1714288247706,-500.0,0.00016712,2]
[323780169,1714288247715,-500.0,0.00016712,2]
[323780170,1714288247725,-621.33,0.00016712,2]
[323780171,1714288247734,-500.0,0.00016712,2]
[323780172,1714288247743,-1623.41,0.00016712,2]
[323780173,1714288247752,-858.5,0.00016712,2]
[323780174,1714288247762,-1807.33,0.00016712,2]
[323780175,1714288247772,-500.0,0.00016712,2]
[323780176,1714288247783,-561.09,0.00016712,2]
[323780177,1714288247793,-500.0,0.00016712,2]
[323780178,1714288247804,-506.38547379,0.00016712,2]
[323780179,1714288247813,-500.0,0.00016712,2]
[323780180,1714288247823,-500.0,0.00016712,2]
[323780181,1714288247834,-500.0,0.00016712,2]
[323780182,1714288247843,-584.00253524,0.00016712,2]
[323780183,1714288247853,-1581.66,0.00016712,2]
[323780184,1714288247862,-773.89,0.00016712,2]
[323780185,1714288247872,-500.0,0.00016712,2]
[323780186,1714288247882,-500.0,0.00016712,2]
[323780187,1714288247892,-500.0,0.00016712,2]
[323780188,1714288247902,-500.0,0.00016712,2]
[323780189,1714288247913,-500.0,0.00016712,2]
[323780190,1714288247923,-500.0,0.00016712,2]
[323780191,1714288247934,-396.39858724,0.00016712,2]
[323780192,1714288247943,-663.0,0.00016712,2]
[323780193,1714288247952,-883.12,0.00016712,2]
[323780194,1714288247962,-500.0,0.00016712,2]
[323780195,1714288247971,-1057.44,0.00016712,2]
[323780196,1714288247980,-500.0,0.00016712,2]
[323780197,1714288247990,-509.15119688,0.00016712,2]
[323780198,1714288248002,-500.0,0.00016712,2]
[323780199,1714288248011,-500.0,0.00016712,2]
[323780200,1714288248021,-503.70548268,0.00016712,2]
[323780201,1714288248030,-1761.73,0.00016712,2]
[323780202,1714288248040,-500.0,0.00016712,2]
[323780203,1714288248051,-500.0,0.00016712,2]
[323780204,1714288248060,-500.0,0.00016712,2]
[323780205,1714288248071,-507.42946311,0.00016712,2]
[323780206,1714288248080,-500.0,0.00016712,2]
[323780207,1714288248090,-506.19059218,0.00016712,2]
[323780208,1714288248099,-671.04,0.00016712,2]
[323780209,1714288248109,-500.0,0.00016712,2]
[323780210,1714288248118,-1243.4,0.00016712,2]
[323780211,1714288248128,-925.01,0.00016712,2]
[323780212,1714288248137,-1150.58,0.00016712,2]
[323780213,1714288248146,-503.35,0.00016712,2]
[323780214,1714288248156,-321.76219254,0.00016712,2]
[323780215,1714288248165,-580.43,0.00016712,2]
[323780216,1714288248174,-1427.64,0.00016712,2]
[323780217,1714288248184,-886.94,0.00016712,2]
[323780218,1714288248193,-500.0,0.00016712,2]
[323780219,1714288248202,-500.02986009,0.00016712,2]
[323780220,1714288248210,-500.0,0.00016712,2]
[323780221,1714288248219,-500.0,0.00016712,2]
[323780222,1714288248228,-500.0,0.00016712,2]
[323780223,1714288248238,-967.01,0.00016712,2]
[323780224,1714288248247,-802.98,0.00016712,2]
[323780225,1714288248257,-519.88074694,0.00016712,2]
[323780226,1714288248266,-500.0,0.00016712,2]
[323780227,1714288248276,-500.0,0.00016712,2]
[323780228,1714288248286,-500.0,0.00016712,2]
[323780229,1714288248296,-500.0,0.00016712,2]
[323780230,1714288248305,-500.0,0.00016712,2]
[323780231,1714288248315,-641.56,0.00016712,2]
[323780232,1714288248324,-886.62,0.00016712,2]
[323780233,1714288248334,-500.0,0.00016712,2]
[323780234,1714288248343,-831.13,0.00016712,2]
[323780235,1714288248352,-500.0,0.00016712,2]
[323780236,1714288248362,-500.0,0.00016712,2]
[323780237,1714288248371,-500.0,0.00016712,2]
[323780238,1714288248380,-500.0,0.00016712,2]
[323780239,1714288248391,-500.0,0.00016712,2]
[323780240,1714288248400,-500.0,0.00016712,2]
[323780241,1714288248410,-1536.74,0.00016712,2]
[323780242,1714288248420,-622.3,0.00016712,2]
[323780243,1714288248430,-1989.61,0.00016712,2]
[323780244,1714288248439,-500.0,0.00016712,2]
[323780245,1714288248449,-500.0,0.00016712,2]
[323780246,1714288248458,-500.0,0.00016712,2]
[323780247,1714288248468,-500.0,0.00016712,2]
[323780248,1714288248478,-575.65,0.00016712,2]
[323780249,1714288248487,-2735.22,0.00016712,2]
[323780250,1714288248497,-1277.84,0.00016712,2]
[323780251,1714288248507,-500.0,0.00016712,2]
[323780252,1714288248516,-907.96,0.00016712,2]
[323780253,1714288248526,-507.9,0.00016712,2]
[323780254,1714288248535,-500.0,0.00016712,2]
[323780255,1714288248545,-500.0,0.00016712,2]
[323780256,1714288248554,-5121.81,0.00016712,2]
[323780257,1714288248563,-500.0,0.00016712,2]
[323780258,1714288248572,-972.28,0.00016712,2]
[323780259,1714288248582,-1735.59,0.00016712,2]
[323780260,1714288248591,-3107.52,0.00016712,2]
[323780261,1714288248600,-500.0,0.00016712,2]
[323780262,1714288248609,-2835.62,0.00016712,2]
[323780263,1714288248618,-2245.75,0.00016712,2]
[323780264,1714288248627,-500.0,0.00016712,2]
[323780265,1714288248637,-1453.27,0.00016712,2]
[323780266,1714288248646,-1715.24,0.00016712,2]
[323780267,1714288248655,-500.0,0.00016712,2]
[323780268,1714288248664,-2520.74,0.00016712,2]
[323780269,1714288248674,-500.0,0.00016712,2]
[323780270,1714288248683,-194.32440387,0.00016712,2]
[323780271,1714288248692,-21011.8,0.00016712,2]
[323780272,1714288248701,-1557.18,0.00016712,2]
[323780273,1714288248710,-3723.69,0.00016712,2]
[323780274,1714288248719,-4712.55,0.00016712,2]
[323780275,1714288248728,-500.0,0.00016712,2]
[323780276,1714288248737,-499.72326719,0.00016712,2]
[323780277,1714288248746,-51006.55,0.00016712,2]
[323780278,1714288248755,-500.0,0.00016712,2]
[323780279,1714288248764,-500.0,0.00016712,2]
[323780280,1714288248773,-1077.14,0.00016712,2]
[323780281,1714288248782,-500.0,0.00016712,2]
[323780282,1714288248792,-11253.96,0.00016712,2]
[323780283,1714288248802,-656.91,0.00016712,2]
[323780284,1714288248811,-2793.85,0.00016712,2]
[323780285,1714288248820,-2818.11,0.00016712,2]
[323780286,1714288248829,-4600.94,0.00016712,2]
[323780287,1714288248838,-766.0,0.00016712,2]
[323780288,1714288248847,-500.0,0.00016712,2]
[323780289,1714288248856,-4200.17,0.00016712,2]
[323780290,1714288248866,-522.33,0.00016712,2]
[323780291,1714288248875,-2570.53,0.00016712,2]
[323780292,1714288248885,-500.0,0.00016712,2]
[323780293,1714288248894,-2350.36,0.00016712,2]
[323780294,1714288248903,-1459.2,0.00016712,2]
[323780295,1714288248911,-500.0,0.00016712,2]
[323780296,1714288248921,-1321.63,0.00016712,2]
[323780297,1714288248930,-4519.89,0.00016712,2]
[323780298,1714288248939,-2788.73,0.00016712,2]
[323780299,1714288249138,-500.0,0.00016712,2]
[323780300,1714288249149,-591.92454351,0.00016712,2]
[323780301,1714288249162,-8309.55,0.00016712,2]
[323780302,1714288249171,-500.0,0.00016712,2]
[323780303,1714288249181,-500.0,0.00016712,2]
[323780304,1714288249191,-500.0,0.00016712,2]
[323780305,1714288249201,-1573.16,0.00016712,2]
[323780306,1714288249211,-681.44,0.00016712,2]
[323780307,1714288249222,-505.29634276,0.00016712,2]
[323780308,1714288249232,-500.0,0.00016712,2]
[323780309,1714288249242,-4655.9,0.00016712,2]
[323780310,1714288249251,-529.63,0.00016712,2]
[323780311,1714288249261,-500.0,0.00016712,2]
[323780312,1714288249269,-500.0,0.00016712,2]
[323780313,1714288249279,-6276.12,0.00016712,2]
[323780314,1714288249288,-1966.95,0.00016712,2]
[323780315,1714288249297,-851.68,0.00016712,2]
[323780316,1714288249306,-1639.46,0.00016712,2]
[323780317,1714288249316,-500.0,0.00016712,2]
[323780318,1714288249325,-500.0,0.00016712,2]
[323780319,1714288249335,-2533.48,0.00016712,2]
[323780320,1714288249345,-500.0,0.00016712,2]
[323780321,1714288249355,-2619.38,0.00016712,2]
[323780322,1714288249365,-10344.68,0.00016712,2]
[323780323,1714288249374,-13708.37,0.00016712,2]
[323780324,1714288249384,-500.0,0.00016712,2]
[323780325,1714288249394,-1094.79,0.00016712,2]
[323780326,1714288249405,-552.48,0.00016712,2]
[323780327,1714288249414,-1372.92,0.00016712,2]
[323780328,1714288249423,-519.84,0.00016712,2]
[323780329,1714288249433,-5155.94,0.00016712,2]
[323780330,1714288249442,-969.89,0.00016712,2]
[323780331,1714288249452,-553.42,0.00016712,2]
[323780332,1714288249462,-500.0,0.00016712,2]
[323780333,1714288249472,-500.0,0.00016712,2]
[323780334,1714288249482,-571.46,0.00016712,2]
[323780335,1714288249491,-1448.38,0.00016712,2]
[323780336,1714288249500,-3440.86,0.00016712,2]
[323780337,1714288249510,-1283.73,0.00016712,2]
[323780338,1714288249519,-6023.3,0.00016712,2]
[323780339,1714288249528,-2269.29,0.00016712,2]
[323780340,1714288249539,-2295.92,0.00016712,2]
[323780341,1714288249549,-8486.11,0.00016712,2]
[323780342,1714288249559,-71029.5,0.00016712,2]
[323780343,1714288249569,-500.0,0.00016712,2]
[323780344,1714288249579,-509.35,0.00016712,2]
[323780345,1714288249588,-500.0,0.00016712,2]
[323780346,1714288249598,-500.0,0.00016712,2]
[323780347,1714288249608,-293.768098,0.00016712,2]
[323780348,1714288249617,-293.768098,0.00016712,2]
[323780349,1714288249627,-293.768098,0.00016712,2]
[323780350,1714288249636,-2587.02,0.00016712,2]
[323780351,1714288249646,-1155.36,0.00016712,2]
[323780352,1714288249656,-293.768098,0.00016712,2]
[323780353,1714288249666,-293.768098,0.00016712,2]
[323780354,1714288249676,-293.768098,0.00016712,2]
[323780355,1714288249686,-2367.02,0.00016712,2]
[323780356,1714288249695,-293.768098,0.00016712,2]
[323780357,1714288249705,-293.768098,0.00016712,2]
[323780358,1714288249714,-293.768098,0.00016712,2]
[323780359,1714288249723,-500.0,0.00016712,2]
[323780360,1714288249732,-293.768098,0.00016712,2]
[323780361,1714288249742,-293.768098,0.00016712,2]
[323780362,1714288249751,-293.768088,0.00016712,2]
[323780363,1714288249760,-500.0,0.00016712,2]
[323780364,1714288249769,-2378.08,0.00016712,2]
[323780365,1714288249779,-1751.04,0.00016712,2]
[323780366,1714288249788,-18882.81,0.00016712,2]
[323780367,1714288249798,-500.0,0.00016712,2]
[323780368,1714288249807,-3774.4,0.00016712,2]
[323780369,1714288249816,-500.0,0.00016712,2]
[323780370,1714288249826,-1092.02,0.00016712,2]
[323780371,1714288249835,-1948.48,0.00016712,2]
[323780372,1714288249844,-500.0,0.00016712,2]
[323780373,1714288249853,-1877.81289415,0.00016712,2]
[323780374,1714288249882,-395.21710585,0.00016712,2]
[323780375,1714288249891,-2289.64,0.00016712,2]
[323780376,1714288249899,-500.0,0.00016712,2]
[323780377,1714288249909,-1870.29,0.00016712,2]
[323780378,1714288249918,-500.0,0.00016712,2]
[323780379,1714288249927,-217.88403,0.00016712,2]
[323780380,1714288249936,-217.88403,0.00016712,2]
[323780381,1714288249945,-852.76,0.00016712,2]
[323780382,1714288249954,-217.88403,0.00016712,2]
[323780383,1714288249963,-217.88403,0.00016712,2]
[323780384,1714288249972,-217.88403,0.00016712,2]
[323780385,1714288249982,-9380.21,0.00016712,2]
[323780386,1714288249991,-217.88403,0.00016712,2]
[323780387,1714288250003,-500.0,0.00016712,2]
[323780388,1714288250012,-217.88403,0.00016712,2]
[323780389,1714288250021,-906.55,0.00016712,2]
[323780390,1714288250030,-217.88403,0.00016712,2]
[323780391,1714288250041,-217.88403,0.00016712,2]
[323780392,1714288250053,-217.884035,0.00016712,2]
[323780393,1714288250062,-7493.55,0.00016712,2]
[323780394,1714288250071,-500.0,0.00016712,2]
[323780395,1714288250081,-500.0,0.00016712,2]
[323780396,1714288250090,-2404.35,0.00016712,2]
[323780397,1714288250099,-2243.61,0.00016712,2]
[323780398,1714288250108,-2574.82,0.00016712,2]
[323780399,1714288250118,-9958.88,0.00016712,2]
[323780400,1714288250127,-511.23966098,0.00016712,2]
[323780401,1714288250137,-500.0,0.00016712,2]
[323780402,1714288250147,-500.0,0.00016712,2]
[323780403,1714288250156,-500.0,0.00016712,2]
[323780404,1714288250166,-500.0,0.00016712,2]
[323780405,1714288250176,-500.0,0.00016712,2]
[323780406,1714288250185,-10744.88,0.00016712,2]
[323780407,1714288250194,-1316.27,0.00016712,2]
[323780408,1714288250203,-47065.16,0.00016712,2]
[323780409,1714288250213,-2851.35,0.00016712,2]
[323780410,1714288250222,-500.0,0.00016712,2]
[323780411,1714288250231,-4502.4,0.00016712,2]
[323780412,1714288250241,-500.0,0.00016712,2]
[323780413,1714288250250,-4705.59,0.00016712,2]
[323780414,1714288250259,-555.480368,0.00016712,2]
[323780415,1714288250268,-500.0,0.00016712,2]
[323780416,1714288250278,-537.66,0.00016712,2]
[323780417,1714288250287,-500.0,0.00016712,2]
[323780418,1714288250297,-500.0,0.00016712,2]
[323780419,1714288250306,-2140.63,0.00016712,2]
[323780420,1714288250315,-500.0,0.00016712,2]
[323780421,1714288250324,-3151.64,0.00016712,2]
[323780422,1714288250333,-8430.0,0.00016712,2]
[323780423,1714288250342,-764.61,0.00016712,2]
[323780424,1714288250352,-3323.5,0.00016712,2]
[323780425,1714288250362,-2061.35,0.00016712,2]
[323780426,1714288250371,-1666.69,0.00016712,2]
[323780427,1714288250380,-2469.6,0.00016712,2]
[323780428,1714288250390,-500.0,0.00016712,2]
[323780429,1714288250399,-500.0,0.00016712,2]
[323780430,1714288250408,-500.0,0.00016712,2]
[323780431,1714288250418,-1800.42,0.00016712,2]
[323780432,1714288250427,-500.0,0.00016712,2]
[323780433,1714288250436,-500.0,0.00016712,2]
[323780434,1714288250445,-1307.81,0.00016712,2]
[323780435,1714288250454,-500.0,0.00016712,2]
[323780436,1714288250464,-500.0,0.00016712,2]
[323780437,1714288250473,-500.0,0.00016712,2]
[323780438,1714288250482,-500.0,0.00016712,2]
[323780439,1714288250492,-3337.89,0.00016712,2]
[323780440,1714288250501,-724.39,0.00016712,2]
[323780441,1714288250510,-1086.02,0.00016712,2]
[323780442,1714288250520,-16374.32,0.00016712,2]
[323780443,1714288250529,-526.3,0.00016712,2]
[323780444,1714288250539,-500.0,0.00016712,2]
[323780445,1714288250550,-1658.16,0.00016712,2]
[323780446,1714288250559,-500.0,0.00016712,2]
[323780447,1714288250568,-3380.9,0.00016712,2]
[323780448,1714288250578,-3067.77,0.00016712,2]
[323780449,1714288250587,-500.0,0.00016712,2]
[323780450,1714288250596,-500.0,0.00016712,2]
[323780451,1714288250607,-500.0,0.00016712,2]
[323780452,1714288250616,-3529.57,0.00016712,2]
[323780453,1714288250626,-500.0,0.00016712,2]
[323780454,1714288250635,-500.0,0.00016712,2]
[323780455,1714288250644,-11027.25,0.00016712,2]
[323780456,1714288250653,-500.0,0.00016712,2]
[323780457,1714288250663,-500.0,0.00016712,2]
[323780458,1714288250672,-500.0,0.00016712,2]
[323780459,1714288250681,-19587.44,0.00016712,2]
[323780460,1714288250690,-552.46,0.00016712,2]
[323780461,1714288250699,-4854.24,0.00016712,2]
[323780462,1714288250708,-2620.78,0.00016712,2]
[323780463,1714288250717,-500.0,0.00016712,2]
[323780464,1714288250726,-500.0,0.00016712,2]
[323780465,1714288250735,-2074.4,0.00016712,2]
[323780466,1714288250745,-500.0,0.00016712,2]
[323780467,1714288250754,-500.0,0.00016712,2]
[323780468,1714288250763,-1024.54,0.00016712,2]
[323780469,1714288250772,-500.0,0.00016712,2]
[323780470,1714288250782,-1012.58,0.00016712,2]
[323780471,1714288250791,-7087.81,0.00016712,2]
[323780472,1714288250801,-730.49,0.00016712,2]
[323780473,1714288250810,-523.63,0.00016712,2]
[323780474,1714288250820,-3038.91,0.00016712,2]
[323780475,1714288250830,-1113.64,0.00016712,2]
[323780476,1714288250839,-681.02,0.00016712,2]
[323780477,1714288250848,-572.29282006,0.00016712,2]
[323780478,1714288250857,-500.0,0.00016712,2]
[323780479,1714288250867,-1072.52,0.00016712,2]
[323780480,1714288250876,-500.0,0.00016712,2]
[323780481,1714288250885,-2266.18,0.00016712,2]
[323780482,1714288250894,-681.75,0.00016712,2]
[323780483,1714288250903,-7560.77,0.00016712,2]
[323780484,1714288250912,-1101.49,0.00016712,2]
[323780485,1714288250921,-4932.09,0.00016712,2]
[323780486,1714288250930,-1141.37,0.00016712,2]
[323780487,1714288250939,-2008.76,0.00016712,2]
[323780488,1714288250948,-500.0,0.00016712,2]
[323780489,1714288250957,-557.43,0.00016712,2]
[323780490,1714288250966,-500.0,0.00016712,2]
[323780491,1714288250976,-2044.21,0.00016712,2]
[323780492,1714288250985,-898.91,0.00016712,2]
[323780493,1714288250997,-536.92,0.00016712,2]
[323780494,1714288251006,-1731.27,0.00016712,2]
[323780495,1714288251015,-1770.56,0.00016712,2]
[323780496,1714288251024,-10711.31,0.00016712,2]
[323780497,1714288251034,-1935.24,0.00016712,2]
[323780498,1714288251043,-500.1670451,0.00016712,2]
[323780499,1714288251053,-1596.47,0.00016712,2]
[323780500,1714288251061,-500.0,0.00016712,2]
[323780501,1714288251071,-6284.75,0.00016712,2]
[323780502,1714288251081,-1027.3,0.00016712,2]
[323780503,1714288251090,-500.0,0.00016712,2]
[323780504,1714288251100,-1330.09,0.00016712,2]
[323780505,1714288251109,-9395.99,0.00016712,2]
[323780506,1714288251118,-500.0,0.00016712,2]
[323780507,1714288251128,-1827.07,0.00016712,2]
[323780508,1714288251137,-3482.83,0.00016712,2]
[323780509,1714288251146,-500.0,0.00016712,2]
[323780510,1714288251156,-1015.34,0.00016712,2]
[323780511,1714288251165,-508.202832,0.00016712,2]
[323780512,1714288251175,-3713.26,0.00016712,2]
[323780513,1714288251184,-3171.03,0.00016712,2]
[323780514,1714288251193,-6703.84,0.00016712,2]
[323780515,1714288251202,-8692.84,0.00016712,2]
[323780516,1714288251211,-1455.28,0.00016712,2]
[323780517,1714288251220,-1879.0,0.00016712,2]
[323780518,1714288251230,-2018.08,0.00016712,2]
[323780519,1714288251239,-958.48,0.00016712,2]
[323780520,1714288251248,-2847.98,0.00016712,2]
[323780521,1714288251257,-500.0,0.00016712,2]
[323780522,1714288251266,-11896.64954977,0.0001672,2]
[323780523,1714288251276,-153.1136192,0.00016771,2]
[323780524,1714288251285,-167.1,0.000169,2]
[323780525,1714288251294,-349.59,0.00016982,2]
[323780526,1714288251304,-1861.5,0.00016985,2]
[323780527,1714288251313,-1861.5,0.00016985,2]
[323780528,1714288251323,-500.0,0.00016986,2]
[323780529,1714288251332,-500.0,0.00016986,2]
[323780530,1714288251342,-552.32,0.00016986,2]
[323780531,1714288251351,-1285.47,0.00016986,2]
[323780532,1714288251360,-500.0,0.00016986,2]
[323780533,1714288251370,-1146.61,0.00016986,2]
[323780534,1714288251379,-573.89,0.00016986,2]
[323780535,1714288251388,-500.0,0.00016986,2]
[323780536,1714288251397,-504.15208414,0.00016986,2]
[323780537,1714288251406,-500.0,0.00016986,2]
[323780538,1714288251416,-500.0,0.00016986,2]
[323780539,1714288251425,-500.0,0.00016986,2]
[323780540,1714288251434,-500.0,0.00016986,2]
[323780541,1714288251443,-500.0,0.00016986,2]
[323780542,1714288251452,-500.0,0.00016986,2]
[323780543,1714288251461,-500.0,0.00016986,2]
[323780544,1714288251471,-500.0,0.00016986,2]
[323780545,1714288251480,-500.0,0.00016986,2]
[323780546,1714288251489,-565.91,0.00016986,2]
[323780547,1714288251499,-500.0,0.00016986,2]
[323780548,1714288251508,-626.03,0.00016986,2]
[323780549,1714288251517,-500.0,0.00016986,2]
[323780550,1714288251526,-500.0,0.00016986,2]
[323780551,1714288251535,-509.69704449,0.00016986,2]
[323780552,1714288251544,-500.0,0.00016986,2]
[323780553,1714288251555,-867.33,0.00016986,2]
[323780554,1714288251565,-500.0,0.00016986,2]
[323780555,1714288251574,-705.59,0.00016986,2]
[323780556,1714288251583,-500.0,0.00016986,2]
[323780557,1714288251592,-500.0,0.00016986,2]
[323780558,1714288251601,-500.0,0.00016986,2]
[323780559,1714288251610,-1385.61,0.00016986,2]
[323780560,1714288251619,-500.0,0.00016986,2]
[323780561,1714288251628,-500.0,0.00016986,2]
[323780562,1714288251638,-509.42561521,0.00016986,2]
[323780563,1714288251647,-500.0,0.00016986,2]
[323780564,1714288251657,-500.0,0.00016986,2]
[323780565,1714288251666,-500.0,0.00016986,2]
[323780566,1714288251675,-500.0,0.00016986,2]
[323780567,1714288251685,-1709.49,0.00016986,2]
[323780568,1714288251694,-500.0,0.00016986,2]
[323780569,1714288251703,-500.0,0.00016986,2]
[323780570,1714288251712,-500.0,0.00016986,2]
[323780571,1714288251721,-506.7903253,0.00016986,2]
[323780572,1714288251730,-1893.56,0.00016986,2]
[323780573,1714288251739,-500.0,0.00016986,2]
[323780574,1714288251748,-1523.55,0.00016986,2]
[323780575,1714288251757,-500.0,0.00016986,2]
[323780576,1714288251767,-500.0,0.00016986,2]
[323780577,1714288251776,-500.0,0.00016986,2]
[323780578,1714288251786,-500.0,0.00016986,2]
[323780579,1714288251795,-504.92925976,0.00016986,2]
[323780580,1714288251805,-500.0,0.00016986,2]
[323780581,1714288251814,-500.0,0.00016986,2]
[323780582,1714288251823,-1251.41,0.00016986,2]
[323780583,1714288251833,-506.08335446,0.00016986,2]
[323780584,1714288251842,-500.0,0.00016986,2]
[323780585,1714288251851,-603.53,0.00016986,2]
[323780586,1714288251860,-500.0,0.00016986,2]
[323780587,1714288251870,-500.0,0.00016986,2]
[323780588,1714288252062,-500.0,0.00016986,2]
[323780589,1714288252074,-1756.36,0.00016986,2]
[323780590,1714288252084,-634.7,0.00016986,2]
[323780591,1714288252094,-274.41098122,0.00016986,2]
[323780592,1714288252103,-192.91072362,0.00016986,2]
[323780593,1714288252112,-500.0,0.00016986,2]
[323780594,1714288252121,-1685.87,0.00016986,2]
[323780595,1714288252131,-500.0,0.00016986,2]
[323780596,1714288252140,-500.0,0.00016986,2]
[323780597,1714288252149,-500.0,0.00016986,2]
[323780598,1714288252158,-2460.72,0.00016986,2]
[323780599,1714288252167,-556.08,0.00016986,2]
[323780600,1714288252177,-500.0,0.00016986,2]
[323780601,1714288252186,-1112.92,0.00016986,2]
[323780602,1714288252195,-500.0,0.00016986,2]
[323780603,1714288252204,-621.45,0.00016986,2]
[323780604,1714288252214,-500.0,0.00016986,2]
[323780605,1714288252223,-1086.21,0.00016986,2]
[323780606,1714288252232,-795.62,0.00016986,2]
[323780607,1714288252241,-508.927074,0.00016986,2]
[323780608,1714288252250,-500.0,0.00016986,2]
[323780609,1714288252259,-500.0,0.00016986,2]
[323780610,1714288252268,-878.67,0.00016986,2]
[323780611,1714288252278,-1784.82,0.00016986,2]
[323780612,1714288252288,-500.0,0.00016986,2]
[323780613,1714288252298,-985.54,0.00016986,2]
[323780614,1714288252307,-500.0,0.00016986,2]
[323780615,1714288252318,-500.0,0.00016986,2]
[323780616,1714288252328,-500.0,0.00016986,2]
[323780617,1714288252338,-313.81515485,0.00016986,2]
[323780618,1714288252412,-500.0,0.00016438,2]
[323780619,1714288252423,-500.0,0.00016712,2]
[323780620,1714288252433,-1756.84484515,0.00016986,2]
[323780621,1714288252443,-500.0,0.00016986,2]
[323780622,1714288252453,-923.47,0.00016986,2]
[323780623,1714288252462,-734.69923412,0.00016986,2]
[323780624,1714288252506,-984.91076588,0.00016986,2]
[323780625,1714288252515,-551.11,0.00016986,2]
[323780626,1714288252526,-524.9678029,0.00016986,2]
[323780627,1714288252535,-557.61529642,0.00016986,2]
[323780628,1714288252545,-733.22,0.00016986,2]
[323780629,1714288252557,-500.0,0.00016986,2]
[323780630,1714288252566,-1122.54,0.00016986,2]
[323780631,1714288252575,-960.79,0.00016986,2]
[323780632,1714288252585,-518.41839261,0.00016986,2]
[323780633,1714288252594,-2126.5,0.00016986,2]
[323780634,1714288252603,-500.0,0.00016986,2]
[323780635,1714288252612,-670.58,0.00016986,2]